[Event "*** Titled Tuesday Blitz"]
[Site "Chess.com"]
[Date "2020.04.07"]
[Round "8"]
[White "Zkid"]
[Black "nihalsarin"]
[Result "0-1"]
[WhiteElo "2826"]
[BlackElo "3074"]
[TimeControl "180+1"]
[EndTime "14:34:33 PDT"]
[Termination "nihalsarin won by resignation"]

1. e4 {[%clk 0:03:00.9]} 1... c6 {[%clk 0:02:59.2]} 2. d4 {[%clk 0:03:00.7]}
2... d5 {[%clk 0:03:00.1]} 3. exd5 {[%clk 0:03:00.9]} 3... cxd5 {[%clk 0:03:01]}
4. Bd3 {[%clk 0:03:01.3]} 4... Nc6 {[%clk 0:02:56.2]} 5. c3 {[%clk 0:03:01.6]}
5... Qc7 {[%clk 0:02:56.6]} 6. Ne2 {[%clk 0:03:01.4]} 6... Bg4 {[%clk
0:02:53.8]} 7. O-O {[%clk 0:03:01.4]} 7... e6 {[%clk 0:02:53.2]} 8. Qe1 {[%clk
0:03:01.1]} 8... Bd6 {[%clk 0:02:53]} 9. f3 {[%clk 0:03:01.2]} 9... Bh5 {[%clk
0:02:53.4]} 10. Qh4 {[%clk 0:03:00.6]} 10... Bg6 {[%clk 0:02:53.9]} 11. Bxg6
{[%clk 0:03:00.2]} 11... fxg6 {[%clk 0:02:54.8]} 12. Bf4 {[%clk 0:02:49.7]}
12... Nf6 {[%clk 0:02:40.4]} 13. Nd2 {[%clk 0:02:40.2]} 13... O-O {[%clk
0:02:40.1]} 14. Qg3 {[%clk 0:02:18.8]} 14... e5 {[%clk 0:02:33.1]} 15. dxe5
{[%clk 0:02:15.5]} 15... Nxe5 {[%clk 0:02:17.7]} 16. Qh3 {[%clk 0:02:05.6]}
16... Rae8 {[%clk 0:02:00.3]} 17. Nd4 {[%clk 0:01:43.4]} 17... Nd3 {[%clk
0:01:47.2]} 18. Bxd6 {[%clk 0:01:38.1]} 18... Qxd6 {[%clk 0:01:48.1]} 19. Qg3
{[%clk 0:01:18.1]} 19... Qb6 {[%clk 0:01:30.4]} 20. f4 {[%clk 0:01:13.1]} 20...
Nc5 {[%clk 0:00:40.5]} 21. N2b3 {[%clk 0:00:59]} 21... Nxb3 {[%clk 0:00:27.5]}
22. axb3 {[%clk 0:00:58]} 22... Re2 {[%clk 0:00:28.1]} 23. Rf2 {[%clk
0:00:35.7]} 23... Ne4 {[%clk 0:00:17.6]} 24. Rxe2 {[%clk 0:00:35.6]} 24... Nxg3
{[%clk 0:00:18.3]} 25. hxg3 {[%clk 0:00:36.5]} 25... g5 {[%clk 0:00:17]} 26. f5
{[%clk 0:00:34.7]} 26... Rxf5 {[%clk 0:00:07.7]} 27. Re6 {[%clk 0:00:31.2]}
27... Qc5 {[%clk 0:00:03.9]} 28. b4 {[%clk 0:00:26.8]} 28... Qc8 {[%clk
0:00:03.8]} 29. Rxa7 {[%clk 0:00:26.3]} 29... Rf7 {[%clk 0:00:03.2]} 30. Ra1
{[%clk 0:00:24.4]} 30... h6 {[%clk 0:00:03.4]} 31. Rae1 {[%clk 0:00:23.1]} 31...
Kh7 {[%clk 0:00:04]} 32. R1e5 {[%clk 0:00:20.9]} 32... Qc7 {[%clk 0:00:03.8]}
33. Nf5 {[%clk 0:00:18.5]} 33... Qc4 {[%clk 0:00:02.1]} 34. Kh2 {[%clk 0:00:17]}
34... Qg4 {[%clk 0:00:02.3]} 35. Ne3 {[%clk 0:00:14.2]} 35... Qh5+ {[%clk
0:00:02.8]} 36. Kg1 {[%clk 0:00:14.8]} 36... Qe2 {[%clk 0:00:03.4]} 37. Nxd5
{[%clk 0:00:14.5]} 37... Qxb2 {[%clk 0:00:03.7]} 38. Re2 {[%clk 0:00:14.5]}
38... Qb1+ {[%clk 0:00:03.8]} 39. Re1 {[%clk 0:00:14.2]} 39... Qc2 {[%clk
0:00:03.6]} 40. R6e2 {[%clk 0:00:13.8]} 40... Qd3 {[%clk 0:00:03.8]} 41. Re5
{[%clk 0:00:12.5]} 41... Qd2 {[%clk 0:00:03]} 42. R1e2 {[%clk 0:00:11.5]} 42...
Qd1+ {[%clk 0:00:03.5]} 43. Re1 {[%clk 0:00:12]} 43... Qd2 {[%clk 0:00:04]} 44.
R1e2 {[%clk 0:00:12.5]} 44... Qd3 {[%clk 0:00:04.7]} 45. Re1 {[%clk 0:00:09.9]}
45... Qxg3 {[%clk 0:00:04.3]} 46. c4 {[%clk 0:00:09.6]} 46... Rf2 {[%clk
0:00:04]} 47. Ne3 {[%clk 0:00:09.6]} 47... Rb2 {[%clk 0:00:04]} 0-1

[Event "*** Titled Tuesday Blitz"]
[Site "Chess.com"]
[Date "2020.04.07"]
[Round "8"]
[White "Chesswizard_2007"]
[Black "Rubinstein_Akiba"]
[Result "0-1"]
[WhiteElo "2600"]
[BlackElo "2366"]
[TimeControl "180+1"]
[EndTime "14:34:33 PDT"]
[Termination "Rubinstein_Akiba won on time"]

1. Nf3 {[%clk 0:03:00.9]} 1... c5 {[%clk 0:03:00.9]} 2. g3 {[%clk 0:02:56.8]}
2... d5 {[%clk 0:02:59.3]} 3. Bg2 {[%clk 0:02:57.7]} 3... g6 {[%clk 0:02:58.5]}
4. O-O {[%clk 0:02:58.6]} 4... Bg7 {[%clk 0:02:59]} 5. c4 {[%clk 0:02:59.2]}
5... d4 {[%clk 0:02:58.6]} 6. e3 {[%clk 0:02:59.8]} 6... Nc6 {[%clk 0:02:55]} 7.
exd4 {[%clk 0:03:00.2]} 7... cxd4 {[%clk 0:02:55.9]} 8. d3 {[%clk 0:03:00.1]}
8... Nf6 {[%clk 0:02:56.2]} 9. a3 {[%clk 0:02:55.7]} 9... a5 {[%clk 0:02:54.2]}
10. Bg5 {[%clk 0:02:54.8]} 10... O-O {[%clk 0:02:53.8]} 11. Nbd2 {[%clk
0:02:54.7]} 11... Nd7 {[%clk 0:02:51.1]} 12. Ne4 {[%clk 0:02:22.7]} 12... f5
{[%clk 0:02:35.1]} 13. Nd6 {[%clk 0:02:21.2]} 13... Qb6 {[%clk 0:02:25.4]} 14.
Nxc8 {[%clk 0:02:17.1]} 14... Raxc8 {[%clk 0:02:25.3]} 15. Qc2 {[%clk
0:02:10.6]} 15... e5 {[%clk 0:02:20.6]} 16. Nd2 {[%clk 0:01:56]} 16... Nc5
{[%clk 0:02:15.3]} 17. Rfb1 {[%clk 0:01:53.1]} 17... h6 {[%clk 0:02:10.9]} 18.
b4 {[%clk 0:01:47.2]} 18... axb4 {[%clk 0:02:01.9]} 19. axb4 {[%clk 0:01:47.3]}
19... Nxb4 {[%clk 0:01:49.1]} 20. Qb2 {[%clk 0:01:12.9]} 20... Ncxd3 {[%clk
0:01:46.1]} 21. Qb3 {[%clk 0:01:10.2]} 21... Qc7 {[%clk 0:01:39.9]} 22. Bf1
{[%clk 0:00:41]} 22... hxg5 {[%clk 0:01:25.5]} 23. Bxd3 {[%clk 0:00:39.8]} 23...
Nxd3 {[%clk 0:01:24.8]} 24. Qxd3 {[%clk 0:00:40.7]} 24... e4 {[%clk 0:01:25.2]}
25. Qb3 {[%clk 0:00:38.7]} 25... e3 {[%clk 0:01:23]} 26. Nf3 {[%clk 0:00:21.7]}
26... g4 {[%clk 0:01:08.2]} 27. Nh4 {[%clk 0:00:20.7]} 27... exf2+ {[%clk
0:01:02.7]} 28. Kxf2 {[%clk 0:00:21.6]} 28... f4 {[%clk 0:01:02.4]} 29. Nxg6
{[%clk 0:00:21.1]} 29... fxg3+ {[%clk 0:01:02.1]} 30. Ke2 {[%clk 0:00:06.2]}
30... Rf2+ {[%clk 0:00:59.9]} 31. Kd1 {[%clk 0:00:06.6]} 31... gxh2 {[%clk
0:00:53.5]} 32. c5+ {[%clk 0:00:07.1]} 32... Kh7 {[%clk 0:00:52.6]} 33. Qd5
{[%clk 0:00:07.6]} 33... Kxg6 {[%clk 0:00:23.2]} 34. Qe4+ {[%clk 0:00:04.4]}
34... Kg5 {[%clk 0:00:20.5]} 35. c6 {[%clk 0:00:03.1]} 35... Qxc6 {[%clk
0:00:15.9]} 36. Qe7+ {[%clk 0:00:02]} 36... Qf6 {[%clk 0:00:14.2]} 37. Ra5+
{[%clk 0:00:01.3]} 37... Kg6 {[%clk 0:00:14.2]} 38. Qe4+ {[%clk 0:00:02]} 38...
Rf5 {[%clk 0:00:13.1]} 39. Qxg4+ {[%clk 0:00:01.6]} 39... Rg5 {[%clk 0:00:11.2]}
40. Qe4+ {[%clk 0:00:01.2]} 40... Kh5 {[%clk 0:00:09]} 41. Rb6 {[%clk
0:00:01.8]} 41... Qf1+ {[%clk 0:00:06.4]} 42. Kd2 {[%clk 0:00:01.7]} 42... Qf2+
{[%clk 0:00:06.5]} 0-1

[Event "*** Titled Tuesday Blitz"]
[Site "Chess.com"]
[Date "2020.04.07"]
[Round "8"]
[White "IAgrest"]
[Black "AquivaRubinstein"]
[Result "1-0"]
[WhiteElo "2223"]
[BlackElo "2367"]
[TimeControl "180+1"]
[EndTime "14:34:33 PDT"]
[Termination "IAgrest won by checkmate"]

1. e4 {[%clk 0:03:00.9]} 1... c5 {[%clk 0:02:59.1]} 2. Nf3 {[%clk 0:03:00.6]}
2... d6 {[%clk 0:02:59.4]} 3. d4 {[%clk 0:03:01.2]} 3... cxd4 {[%clk 0:02:59.8]}
4. Nxd4 {[%clk 0:03:02.1]} 4... Nf6 {[%clk 0:03:00.1]} 5. Nc3 {[%clk 0:03:02.1]}
5... a6 {[%clk 0:03:00.4]} 6. Bg5 {[%clk 0:03:02.7]} 6... e6 {[%clk 0:02:59.7]}
7. f4 {[%clk 0:03:02.4]} 7... Qb6 {[%clk 0:02:59.7]} 8. a3 {[%clk 0:02:44]} 8...
Nbd7 {[%clk 0:02:53.1]} 9. Be2 {[%clk 0:02:15.8]} 9... Be7 {[%clk 0:02:44]} 10.
Qd2 {[%clk 0:01:52.4]} 10... h6 {[%clk 0:02:16.1]} 11. Bxf6 {[%clk 0:01:52.1]}
11... Bxf6 {[%clk 0:01:55.9]} 12. O-O-O {[%clk 0:01:51]} 12... Qc7 {[%clk
0:01:40.8]} 13. Rhe1 {[%clk 0:01:49]} 13... Be7 {[%clk 0:01:33.8]} 14. Kb1
{[%clk 0:01:38.9]} 14... Rb8 {[%clk 0:01:33.1]} 15. f5 {[%clk 0:01:35.2]} 15...
Ne5 {[%clk 0:01:25.1]} 16. fxe6 {[%clk 0:01:12]} 16... fxe6 {[%clk 0:01:24.8]}
17. Bh5+ {[%clk 0:00:52.8]} 17... g6 {[%clk 0:01:24.8]} 18. Be2 {[%clk
0:00:52.3]} 18... b5 {[%clk 0:01:16.7]} 19. Nf3 {[%clk 0:00:41.4]} 19... Bb7
{[%clk 0:00:38.7]} 20. Qe3 {[%clk 0:00:33]} 20... Bc6 {[%clk 0:00:32.4]} 21. Nd4
{[%clk 0:00:29.5]} 21... Bd7 {[%clk 0:00:30.4]} 22. Rf1 {[%clk 0:00:28]} 22...
b4 {[%clk 0:00:29.6]} 23. axb4 {[%clk 0:00:25.4]} 23... Rxb4 {[%clk 0:00:30.5]}
24. Nb3 {[%clk 0:00:24.4]} 24... Bg5 {[%clk 0:00:21.4]} 25. Qg3 {[%clk
0:00:21.6]} 25... a5 {[%clk 0:00:20]} 26. Rd4 {[%clk 0:00:19.4]} 26... Qb6
{[%clk 0:00:16.8]} 27. Rxb4 {[%clk 0:00:18.1]} 27... axb4 {[%clk 0:00:17.3]} 28.
Nd1 {[%clk 0:00:14]} 28... Ke7 {[%clk 0:00:16]} 29. h4 {[%clk 0:00:12.8]} 29...
Bf6 {[%clk 0:00:14.5]} 30. Ne3 {[%clk 0:00:12.7]} 30... Ra8 {[%clk 0:00:12.3]}
31. Nc4 {[%clk 0:00:05.5]} 31... Nxc4 {[%clk 0:00:11]} 32. Bxc4 {[%clk
0:00:06.4]} 32... Qa7 {[%clk 0:00:09.4]} 33. Qxg6 {[%clk 0:00:05.7]} 33... Qa2+
{[%clk 0:00:08.9]} 34. Kc1 {[%clk 0:00:06.1]} 34... Qxb2+ {[%clk 0:00:09.5]} 35.
Kd1 {[%clk 0:00:06.4]} 35... Qb1+ {[%clk 0:00:06]} 36. Kd2 {[%clk 0:00:06.6]}
36... Bc3+ {[%clk 0:00:05]} 37. Ke3 {[%clk 0:00:05.7]} 37... Qxc2 {[%clk
0:00:04.4]} 38. Qh7+ {[%clk 0:00:05.3]} 38... Kd8 {[%clk 0:00:04.7]} 39. Rf8+
{[%clk 0:00:04.6]} 39... Be8 {[%clk 0:00:04.8]} 40. Qxh6 {[%clk 0:00:03]} 40...
Qc1+ {[%clk 0:00:05]} 41. Nxc1 {[%clk 0:00:02.5]} 41... Bd2+ {[%clk 0:00:05.3]}
42. Kxd2 {[%clk 0:00:02.1]} 42... Ra1 {[%clk 0:00:06]} 43. Kd1 {[%clk
0:00:02.7]} 43... Kc7 {[%clk 0:00:06.5]} 44. Qg5 {[%clk 0:00:03]} 44... Kb6
{[%clk 0:00:07.4]} 45. Qf6 {[%clk 0:00:03.5]} 45... Kc5 {[%clk 0:00:08.3]} 46.
Rxe8 {[%clk 0:00:04]} 46... d5 {[%clk 0:00:09.2]} 47. Rxe6 {[%clk 0:00:04.9]}
47... Kxc4 {[%clk 0:00:09.1]} 48. Rc6+ {[%clk 0:00:04.6]} 48... Kb5 {[%clk
0:00:07.3]} 49. exd5 {[%clk 0:00:05.5]} 49... Ka4 {[%clk 0:00:08.2]} 50. Qxa1+
{[%clk 0:00:05.3]} 50... Kb5 {[%clk 0:00:07.8]} 51. Qa6# {[%clk 0:00:06.2]} 1-0

[Event "*** Titled Tuesday Blitz"]
[Site "Chess.com"]
[Date "2020.04.07"]
[Round "8"]
[White "Walter_White_Poland"]
[Black "Martins-BR"]
[Result "1-0"]
[WhiteElo "2137"]
[BlackElo "2269"]
[TimeControl "180+1"]
[EndTime "14:34:33 PDT"]
[Termination "Walter_White_Poland won by resignation"]

1. e4 {[%clk 0:03:00.9]} 1... c5 {[%clk 0:02:58.8]} 2. Nf3 {[%clk 0:03:00.3]}
2... e6 {[%clk 0:02:58.7]} 3. d4 {[%clk 0:03:00.4]} 3... cxd4 {[%clk 0:02:59.6]}
4. Nxd4 {[%clk 0:03:01]} 4... Nc6 {[%clk 0:02:59.7]} 5. Nc3 {[%clk 0:03:00.3]}
5... Qc7 {[%clk 0:02:59.4]} 6. a3 {[%clk 0:02:59.1]} 6... a6 {[%clk 0:02:58.2]}
7. Nxc6 {[%clk 0:02:58.5]} 7... bxc6 {[%clk 0:02:56.9]} 8. Bd3 {[%clk
0:02:53.2]} 8... Nf6 {[%clk 0:02:55.3]} 9. O-O {[%clk 0:02:52.6]} 9... d5 {[%clk
0:02:50.8]} 10. Re1 {[%clk 0:02:51]} 10... Be7 {[%clk 0:02:41.1]} 11. e5 {[%clk
0:02:48.9]} 11... Nd7 {[%clk 0:02:40.4]} 12. Qg4 {[%clk 0:02:48.5]} 12... g6
{[%clk 0:02:37.1]} 13. Bh6 {[%clk 0:01:08.3]} 13... Nxe5 {[%clk 0:02:12.1]} 14.
Qg3 {[%clk 0:01:07.9]} 14... f6 {[%clk 0:02:11.1]} 15. f4 {[%clk 0:01:00.6]}
15... Nxd3 {[%clk 0:02:03.3]} 16. cxd3 {[%clk 0:01:00.7]} 16... Qb6+ {[%clk
0:01:54.4]} 17. Kh1 {[%clk 0:00:59.9]} 17... Qxb2 {[%clk 0:01:52.9]} 18. d4
{[%clk 0:00:59.8]} 18... Qb6 {[%clk 0:01:43.8]} 19. f5 {[%clk 0:00:56]} 19...
Kf7 {[%clk 0:01:29.8]} 20. fxe6+ {[%clk 0:00:48.6]} 20... Bxe6 {[%clk
0:01:28.8]} 21. Qe3 {[%clk 0:00:45.4]} 21... c5 {[%clk 0:01:27.5]} 22. Nxd5
{[%clk 0:00:43.1]} 22... Qd6 {[%clk 0:01:17.4]} 23. Nxe7 {[%clk 0:00:41.8]}
23... Kxe7 {[%clk 0:01:10.9]} 24. d5 {[%clk 0:00:39.9]} 24... Qxd5 {[%clk
0:01:08.9]} 25. Rad1 {[%clk 0:00:38.9]} 25... Qc6 {[%clk 0:01:05.4]} 26. Bg7
{[%clk 0:00:20.6]} 26... Rhg8 {[%clk 0:00:54.2]} 27. Qh6 {[%clk 0:00:09.6]}
27... Kf7 {[%clk 0:00:53.3]} 28. Bxf6 {[%clk 0:00:05.2]} 28... Kxf6 {[%clk
0:00:44.2]} 29. Qf4+ {[%clk 0:00:05.3]} 29... Kg7 {[%clk 0:00:28.1]} 30. Qe5+
{[%clk 0:00:05.2]} 30... Kf7 {[%clk 0:00:27.4]} 31. Rd6 {[%clk 0:00:04.5]} 31...
Qc8 {[%clk 0:00:14.3]} 32. Rxe6 {[%clk 0:00:04.6]} 32... Re8 {[%clk 0:00:11.8]}
33. Qf6+ {[%clk 0:00:04.8]} 33... Kg8 {[%clk 0:00:11.1]} 34. Rxe8+ {[%clk
0:00:04.9]} 34... Qxe8 {[%clk 0:00:11.9]} 35. Rxe8+ {[%clk 0:00:05.1]} 35...
Rxe8 {[%clk 0:00:12.6]} 36. h4 {[%clk 0:00:05.7]} 36... c4 {[%clk 0:00:10]} 37.
Qc6 {[%clk 0:00:04.7]} 37... Re1+ {[%clk 0:00:08.8]} 38. Kh2 {[%clk 0:00:05]}
38... Rc1 {[%clk 0:00:08.8]} 39. h5 {[%clk 0:00:05.2]} 39... gxh5 {[%clk
0:00:07.8]} 40. Qd5+ {[%clk 0:00:05.4]} 40... Kf8 {[%clk 0:00:06.2]} 41. Qf3+
{[%clk 0:00:05.1]} 41... Kg7 {[%clk 0:00:05.4]} 42. Qg3+ {[%clk 0:00:04.6]}
42... Kh8 {[%clk 0:00:02.5]} 43. Qe5+ {[%clk 0:00:04.6]} 43... Kg8 {[%clk
0:00:02]} 44. Qg5+ {[%clk 0:00:05.5]} 1-0

[Event "*** Titled Tuesday Blitz"]
[Site "Chess.com"]
[Date "2020.04.07"]
[Round "8"]
[White "Crazy_girl99"]
[Black "MiroMiljkovic"]
[Result "1-0"]
[WhiteElo "2499"]
[BlackElo "2589"]
[TimeControl "180+1"]
[EndTime "14:34:39 PDT"]
[Termination "Crazy_girl99 won by checkmate"]

1. Nf3 {[%clk 0:02:59.9]} 1... Nf6 {[%clk 0:02:59.4]} 2. g3 {[%clk 0:02:58.3]}
2... g6 {[%clk 0:02:58.3]} 3. Bg2 {[%clk 0:02:58]} 3... Bg7 {[%clk 0:02:59.2]}
4. O-O {[%clk 0:02:56.9]} 4... O-O {[%clk 0:03:00.1]} 5. d4 {[%clk 0:02:57.1]}
5... d5 {[%clk 0:02:58.3]} 6. c4 {[%clk 0:02:57.2]} 6... c6 {[%clk 0:02:56]} 7.
cxd5 {[%clk 0:02:56.4]} 7... cxd5 {[%clk 0:02:56.9]} 8. Ne5 {[%clk 0:02:56.7]}
8... Nbd7 {[%clk 0:02:55.4]} 9. Nd3 {[%clk 0:02:55.2]} 9... Nb6 {[%clk
0:02:54.4]} 10. Nc3 {[%clk 0:02:54.7]} 10... e6 {[%clk 0:02:52]} 11. Bf4 {[%clk
0:02:42.8]} 11... Bd7 {[%clk 0:02:51.5]} 12. b3 {[%clk 0:02:40.3]} 12... Rc8
{[%clk 0:02:47.1]} 13. Rc1 {[%clk 0:02:40.2]} 13... Re8 {[%clk 0:02:38.9]} 14.
Qd2 {[%clk 0:02:33]} 14... Nh5 {[%clk 0:02:35]} 15. Be3 {[%clk 0:02:31.8]} 15...
Bf8 {[%clk 0:02:22.6]} 16. Nc5 {[%clk 0:02:25.4]} 16... Bc6 {[%clk 0:02:20.2]}
17. a4 {[%clk 0:02:12.6]} 17... Nd7 {[%clk 0:02:15.4]} 18. b4 {[%clk 0:02:07]}
18... Nb6 {[%clk 0:02:13.8]} 19. b5 {[%clk 0:01:50.6]} 19... Nc4 {[%clk
0:02:13.7]} 20. Qd3 {[%clk 0:01:33.9]} 20... Nxe3 {[%clk 0:02:09.5]} 21. fxe3
{[%clk 0:01:18.3]} 21... Bxc5 {[%clk 0:01:55.5]} 22. bxc6 {[%clk 0:01:15.6]}
22... Bb6 {[%clk 0:01:50.4]} 23. cxb7 {[%clk 0:01:13.9]} 23... Rb8 {[%clk
0:01:48.8]} 24. Qa6 {[%clk 0:01:10.8]} 24... Qd7 {[%clk 0:01:47.5]} 25. a5
{[%clk 0:01:05.6]} 25... Bd8 {[%clk 0:01:43.5]} 26. Rb1 {[%clk 0:01:04]} 26...
Bg5 {[%clk 0:01:40.4]} 27. Qxa7 {[%clk 0:00:51.5]} 27... Bxe3+ {[%clk
0:01:38.1]} 28. Kh1 {[%clk 0:00:51.6]} 28... Qe7 {[%clk 0:01:16.5]} 29. a6
{[%clk 0:00:46.1]} 29... Qg5 {[%clk 0:01:11.3]} 30. Rf3 {[%clk 0:00:43.5]} 30...
e5 {[%clk 0:01:04]} 31. Rxe3 {[%clk 0:00:27.3]} 31... Qxe3 {[%clk 0:01:01.2]}
32. Nxd5 {[%clk 0:00:27.3]} 32... Qxe2 {[%clk 0:00:48.9]} 33. dxe5 {[%clk
0:00:24.6]} 33... Qc2 {[%clk 0:00:31.2]} 34. Qb6 {[%clk 0:00:23.4]} 34... Ng7
{[%clk 0:00:12.3]} 35. a7 {[%clk 0:00:22.4]} 35... Nf5 {[%clk 0:00:11.4]} 36.
axb8=Q {[%clk 0:00:20.6]} 36... Rxb8 {[%clk 0:00:11.4]} 37. Nf6+ {[%clk
0:00:20.8]} 37... Kg7 {[%clk 0:00:11.6]} 38. Nd7 {[%clk 0:00:20.8]} 38... Ne3
{[%clk 0:00:08.5]} 39. Qb2 {[%clk 0:00:11.2]} 39... Qxb2 {[%clk 0:00:04]} 40.
Rxb2 {[%clk 0:00:11]} 40... Rd8 {[%clk 0:00:04.4]} 41. b8=Q {[%clk 0:00:10.4]}
41... Rxd7 {[%clk 0:00:05]} 42. h3 {[%clk 0:00:08.7]} 42... Rd1+ {[%clk
0:00:04.9]} 43. Kh2 {[%clk 0:00:09]} 43... h5 {[%clk 0:00:05.3]} 44. Qb6 {[%clk
0:00:08.8]} 44... Re1 {[%clk 0:00:05.5]} 45. Qf6+ {[%clk 0:00:09]} 45... Kh7
{[%clk 0:00:05]} 46. Rb8 {[%clk 0:00:09.1]} 46... Nf1+ {[%clk 0:00:03.8]} 47.
Bxf1 {[%clk 0:00:08.5]} 47... Rxf1 {[%clk 0:00:04.5]} 48. Rh8# {[%clk
0:00:07.5]} 1-0

[Event "*** Titled Tuesday Blitz"]
[Site "Chess.com"]
[Date "2020.04.07"]
[Round "8"]
[White "rasmussvane"]
[Black "Ba_clbaf_osed_ingo_3v21"]
[Result "1-0"]
[WhiteElo "2884"]
[BlackElo "2694"]
[TimeControl "180+1"]
[EndTime "14:34:40 PDT"]
[Termination "rasmussvane won by resignation"]

1. Nf3 {[%clk 0:03:00.9]} 1... c5 {[%clk 0:02:59.3]} 2. c4 {[%clk 0:03:00.9]}
2... Nc6 {[%clk 0:02:59.3]} 3. Nc3 {[%clk 0:03:01.3]} 3... g6 {[%clk 0:02:59.3]}
4. e3 {[%clk 0:03:01.4]} 4... Nf6 {[%clk 0:02:59.4]} 5. d4 {[%clk 0:03:01.6]}
5... cxd4 {[%clk 0:03:00.3]} 6. exd4 {[%clk 0:03:02.5]} 6... d5 {[%clk
0:03:00.7]} 7. cxd5 {[%clk 0:03:03.4]} 7... Nxd5 {[%clk 0:03:01.2]} 8. Qb3
{[%clk 0:03:04.1]} 8... e6 {[%clk 0:02:50.1]} 9. Bb5 {[%clk 0:03:04]} 9... Bg7
{[%clk 0:02:49.7]} 10. O-O {[%clk 0:03:04.6]} 10... O-O {[%clk 0:02:49.6]} 11.
Bxc6 {[%clk 0:03:05]} 11... bxc6 {[%clk 0:02:50.5]} 12. Re1 {[%clk 0:03:05.4]}
12... Qd6 {[%clk 0:02:44.9]} 13. Ne4 {[%clk 0:03:04.9]} 13... Qc7 {[%clk
0:02:38.3]} 14. h4 {[%clk 0:03:03]} 14... a5 {[%clk 0:02:36.6]} 15. h5 {[%clk
0:02:54.6]} 15... a4 {[%clk 0:02:34.5]} 16. Qc2 {[%clk 0:02:47.4]} 16... Ba6
{[%clk 0:02:29]} 17. h6 {[%clk 0:02:36.8]} 17... Bh8 {[%clk 0:02:26]} 18. a3
{[%clk 0:02:33.5]} 18... Nf4 {[%clk 0:02:14.6]} 19. Nc5 {[%clk 0:02:26.5]} 19...
Bb5 {[%clk 0:02:09.5]} 20. Ne5 {[%clk 0:02:26.2]} 20... Nd5 {[%clk 0:02:05.7]}
21. Bd2 {[%clk 0:02:26.4]} 21... Qe7 {[%clk 0:01:49]} 22. Rac1 {[%clk
0:02:19.5]} 22... Qh4 {[%clk 0:01:45.6]} 23. Re4 {[%clk 0:02:00.2]} 23... Qe7
{[%clk 0:01:41.3]} 24. Nf3 {[%clk 0:01:41.7]} 24... Qd6 {[%clk 0:01:29.6]} 25.
Rce1 {[%clk 0:01:38.1]} 25... Nf6 {[%clk 0:01:20.1]} 26. Rh4 {[%clk 0:01:19.8]}
26... Nd7 {[%clk 0:01:14.7]} 27. Nxd7 {[%clk 0:01:11.4]} 27... Qxd7 {[%clk
0:01:14.6]} 28. Bb4 {[%clk 0:01:10.3]} 28... Rfd8 {[%clk 0:01:10.5]} 29. Bc5
{[%clk 0:01:04.8]} 29... Qd5 {[%clk 0:01:05.3]} 30. Ne5 {[%clk 0:01:03.6]} 30...
Rab8 {[%clk 0:00:36.3]} 31. Rf4 {[%clk 0:00:59.8]} 31... Rb7 {[%clk 0:00:36.1]}
32. Re3 {[%clk 0:00:59.6]} 32... Re8 {[%clk 0:00:23.7]} 33. Ng4 {[%clk
0:00:52.7]} 33... f5 {[%clk 0:00:20.9]} 34. Ne5 {[%clk 0:00:51.6]} 34... Rd8
{[%clk 0:00:19.2]} 35. Qc3 {[%clk 0:00:30.1]} 35... Bf6 {[%clk 0:00:18.9]} 36.
Rg3 {[%clk 0:00:22]} 36... Kh8 {[%clk 0:00:15.4]} 37. Ng4 {[%clk 0:00:18.9]}
37... Bg5 {[%clk 0:00:13]} 38. Ne3 {[%clk 0:00:18.8]} 38... Bxf4 {[%clk
0:00:08.2]} 39. Nxd5 {[%clk 0:00:18.9]} 39... Rxd5 {[%clk 0:00:03.7]} 40. Rf3
{[%clk 0:00:16.6]} 40... Bxh6 {[%clk 0:00:03.6]} 41. Qa5 {[%clk 0:00:15.6]}
41... Rbd7 {[%clk 0:00:03]} 42. Rh3 {[%clk 0:00:11.2]} 42... Bg7 {[%clk
0:00:02.8]} 43. Re3 {[%clk 0:00:10.9]} 43... e5 {[%clk 0:00:02.4]} 44. Bb6
{[%clk 0:00:06.8]} 44... e4 {[%clk 0:00:02.5]} 45. Qa8+ {[%clk 0:00:05.7]} 1-0